bitfinex/quotes_SOLUSD_20250403
["timestamp","ask_amount","ask_price","bid_price","bid_amount"]
[1743676674483,135.7,116.43,116.39,8.5915]
[1743676674694,135.7,116.42,116.39,8.5915]
[1743676674890,135.7,116.42,116.4,18.79181043]
[1743676675092,135.7,116.45,116.41,0.28432314]
[1743676675476,135.7,116.45,116.41,0.14216157]
[1743676675979,135.7,116.45,116.41,8.73176157]
[1743676678492,135.7,116.46,116.43,0.14216157]
[1743676678693,135.7,116.47,116.43,0.14216157]
[1743676679290,0.063,116.48,116.43,0.14216157]
[1743676680186,0.063,116.48,116.45,18.933972]
[1743676681376,135.7,116.47,116.44,8.5881]
[1743676681578,135.7,116.46,116.44,8.5881]
[1743676681779,135.7,116.45,116.42,8.5895]
[1743676681997,135.7,116.44,116.42,8.5895]
[1743676682197,135.7,116.44,116.41,27.23994886]
[1743676683282,135.7,116.43,116.39,8.5918]
[1743676683482,135.7,116.42,116.39,8.5918]
[1743676683681,135.7,116.42,116.4,18.64964886]
[1743676683902,135.7,116.42,116.41,0.28432314]
[1743676684105,137.90627057,116.48,116.44,0.28432314]
[1743676684399,135.7,116.47,116.44,0.28432314]
[1743676684604,135.663,116.48,116.44,0.28432314]
[1743676685187,0.063,116.48,116.44,0.28432314]
[1743676686098,0.063,116.48,116.45,30.0557]
[1743676686279,0.063,116.48,116.47,0.28432314]
[1743676688185,0.063,116.52,116.47,49.12673357]
[1743676688379,0.063,116.52,116.49,0.14216157]
[1743676688609,0.063,116.52,116.49,0.28432314]
[1743676689118,0.063,116.52,116.49,0.42648471]
[1743676690002,0.063,116.52,116.49,0.28432314]
[1743676690203,0.063,116.52,116.49,9.01018471]
[1743676690880,0.063,116.52,116.51,0.14216157]
[1743676691290,0.063,116.52,116.5,18.64964886]
[1743676691513,0.063,116.52,116.49,8.86802314]
[1743676691711,2.20627057,116.52,116.48,27.23444886]
[1743676691890,135.6,116.51,116.48,27.23444886]
[1743676692923,135.6,116.51,116.48,8.5848]
[1743676693724,135.6,116.51,116.49,0.28432314]
[1743676694420,135.6,116.51,116.49,8.86842314]
[1743676695319,135.6,116.5,116.45,0.14216157]
[1743676695489,135.6,116.49,116.45,18.79181043]
[1743676695997,135.6,116.49,116.45,18.64964886]
[1743676696391,144.1844,116.49,116.45,18.64964886]
[1743676696616,135.6,116.49,116.45,18.64964886]
[1743676697994,135.63,116.49,116.45,18.64964886]
[1743676698817,135.63,116.49,116.46,8.5866]
[1743676699222,135.6,116.48,116.46,8.5866]
[1743676701429,135.6,116.47,116.4,0.063]
[1743676701616,135.6,116.46,116.42,18.64964886]
[1743676701803,135.6,116.46,116.43,0.42648471]
[1743676702000,135.6,116.47,116.43,0.28432314]
[1743676702401,135.6,116.47,116.42,18.64964886]
[1743676702402,2.14327057,116.46,116.42,18.64964886]
[1743676703926,2.14327057,116.46,116.43,8.5888]
[1743676704510,135.6,116.47,116.43,8.5888]
[1743676705107,135.6,116.46,116.43,8.5888]
[1743676705396,135.6,116.46,116.43,0.28432314]
[1743676705817,135.6,116.46,116.44,8.5881]
[1743676706631,135.6,116.46,116.41,0.14216157]
[1743676706848,135.6,116.46,116.41,0.42648471]
[1743676707049,135.6,116.46,116.42,8.5892]
[1743676707250,137.74327057,116.46,116.42,8.5892]
[1743676707654,135.6,116.46,116.43,18.933972]
[1743676707957,135.6,116.46,116.44,8.5881]
[1743676708835,135.6,116.46,116.41,0.14216157]
[1743676709352,144.1867,116.46,116.42,18.933972]
[1743676709554,144.1867,116.46,116.4,0.063]
[1743676709555,137.74327057,116.45,116.4,0.063]
[1743676709857,137.74327057,116.45,116.41,0.063]
[1743676709858,8.5888,116.43,116.41,0.063]
[1743676710166,10.73207057,116.43,116.41,0.063]
[1743676711828,2.14327057,116.43,116.41,0.063]
[1743676712044,10.73227057,116.43,116.41,0.063]
[1743676713827,144.1895,116.42,116.41,0.063]
[1743676714141,8.5895,116.42,116.41,0.063]
[1743676714341,10.73722208,116.42,116.41,0.063]
[1743676714551,17.37112208,116.42,116.41,0.063]
[1743676715646,20.80781184,116.42,116.41,0.063]
[1743676716838,12.21831184,116.42,116.41,0.063]
[1743676717040,5.58441184,116.42,116.41,0.063]
[1743676717536,10.73237057,116.43,116.41,0.063]
[1743676718554,2.14327057,116.43,116.41,0.063]
[1743676719754,135.7,116.42,116.41,0.063]
[1743676722728,10.73277057,116.42,116.41,0.063]
[1743676723247,10.73277057,116.42,116.4,0.063]
[1743676723433,36.51277057,116.42,116.4,0.063]
[1743676723634,10.73277057,116.42,116.4,0.063]
[1743676723835,12.88074124,116.42,116.4,0.063]
[1743676724461,38.66074124,116.42,116.4,0.063]
[1743676724867,2.14797067,116.41,116.4,0.063]
[1743676725359,26.0,116.39,116.38,0.063]
[1743676725655,28.14327057,116.39,116.38,0.063]
[1743676726367,38.88304124,116.39,116.38,0.063]
[1743676727241,6.1023,116.38,116.31,0.03]
[1743676727457,137.84327057,116.37,116.31,0.03]
[1743676727662,26.0,116.34,116.31,0.03]
[1743676727863,137.84327057,116.33,116.31,0.03]
[1743676728158,135.7,116.32,116.31,0.03]
[1743676728352,144.2969,116.32,116.31,0.03]
[1743676728935,8.5969,116.32,116.31,0.03]
[1743676734242,10.73987057,116.33,116.31,0.03]
[1743676734958,2.14327057,116.33,116.31,0.03]
[1743676735171,10.73947057,116.33,116.31,0.03]
[1743676735878,135.7,116.32,116.31,0.03]
[1743676737068,144.2969,116.32,116.31,0.03]
[1743676737245,161.607,116.3,116.29,0.063]
[1743676737443,28.14327057,116.3,116.29,0.063]
[1743676738465,26.0,116.3,116.29,0.063]
[1743676738772,2.14327057,116.31,116.29,0.063]
[1743676739062,36.74157057,116.31,116.29,0.063]
[1743676739665,2.14327057,116.31,116.29,0.063]
[1743676740039,10.74107057,116.31,116.29,0.063]
[1743676740440,2.14327057,116.31,116.29,0.063]
[1743676740645,159.32897057,116.36,116.29,0.063]
[1743676740953,135.7,116.35,116.29,0.063]
[1743676741143,2.14327057,116.34,116.29,0.063]
[1743676741343,8.5962,116.33,116.29,0.063]
[1743676741552,137.84327057,116.32,116.29,0.063]
[1743676742845,135.574,116.28,116.25,0.03]
[1743676743143,137.71727057,116.27,116.25,0.03]
[1743676743761,135.574,116.26,116.25,0.03]
[1743676744445,144.1754,116.26,116.25,0.03]
[1743676744645,146.31867057,116.26,116.25,0.03]
[1743676745064,146.31867057,116.26,116.19,0.03]
[1743676745065,51.78,116.23,116.19,0.03]
[1743676745252,51.92216157,116.2,116.19,0.03]
[1743676745453,51.92216157,116.2,116.17,0.03]
[1743676745454,60.25493214,116.2,116.17,0.03]
[1743676745643,26.0,116.15,116.07,6.2048]
[1743676745848,137.84327057,116.14,116.07,6.2048]
[1743676746256,135.7,116.14,116.09,0.14216157]
[1743676746664,135.7,116.14,116.09,8.6137]
[1743676746867,2.14327057,116.13,116.07,8.6154]
[1743676747068,135.7,116.14,116.08,19.07613357]
[1743676747272,2.14327057,116.17,116.08,18.79181043]
[1743676747273,135.7,116.16,116.08,18.79181043]
[1743676747569,135.7,116.18,116.11,0.42648471]
[1743676747747,135.7,116.17,116.11,0.28432314]
[1743676747943,137.84327057,116.17,116.11,0.28432314]
[1743676748148,135.7,116.17,116.11,0.14216157]
[1743676748758,135.7,116.17,116.14,0.14216157]
[1743676748961,135.7,116.19,116.14,0.14216157]
[1743676750062,135.7,116.2,116.14,0.14216157]
[1743676750264,135.7,116.19,116.16,18.933972]
[1743676750464,135.7,116.18,116.15,8.6095]
[1743676750768,137.84327057,116.18,116.15,8.6095]
[1743676750959,135.7,116.18,116.15,8.6095]
[1743676751468,137.84327057,116.17,116.11,21.5306]
[1743676751672,135.7,116.16,116.11,21.5306]
[1743676751859,2.14327057,116.15,116.11,21.5306]
[1743676752169,135.7,116.14,116.12,8.6115]
[1743676753072,135.7,116.14,116.13,18.79181043]
[1743676753246,135.7,116.14,116.13,18.933972]
[1743676753445,135.7,116.14,116.12,8.6115]
[1743676754572,135.7,116.14,116.13,18.933972]
[1743676756361,135.7,116.18,116.14,18.64964886]
[1743676757153,8.6054,116.21,116.13,30.1385]
[1743676757154,137.84327057,116.17,116.13,30.1385]
[1743676757452,137.84327057,116.2,116.13,30.1385]
[1743676757653,135.7,116.19,116.13,30.1385]
[1743676758073,2.14327057,116.18,116.13,30.1385]
[1743676758480,135.7,116.19,116.13,21.5575]
[1743676758683,2.14327057,116.18,116.13,21.5575]
[1743676759487,135.7,116.17,116.13,21.5575]
[1743676759684,135.7,116.16,116.13,21.5575]
[1743676761971,135.7,116.15,116.13,21.5575]
[1743676762284,135.7,116.14,116.13,21.5575]
[1743676762588,135.7,116.19,116.13,21.5575]
[1743676762787,137.84327057,116.18,116.13,0.03]
[1743676762990,135.7,116.17,116.13,0.03]
[1743676763277,137.84327057,116.16,116.13,0.03]
[1743676763474,135.7,116.15,116.13,0.03]
[1743676763887,137.84327057,116.14,116.13,0.03]
[1743676764083,2.14327057,116.14,116.13,0.03]
[1743676764285,2.14327057,116.18,116.13,0.03]
[1743676764464,135.7,116.17,116.13,0.03]
[1743676764663,137.84327057,116.16,116.13,0.03]
[1743676767261,135.7,116.15,116.13,0.03]
[1743676767863,2.14327057,116.14,116.13,0.03]
[1743676768271,135.7,116.15,116.13,0.03]
[1743676768765,137.84327057,116.14,116.13,0.03]
[1743676768961,2.14327057,116.14,116.13,0.03]
[1743676769163,2.14327057,116.15,116.13,0.03]
[1743676770776,135.7,116.14,116.13,0.03]
[1743676770969,135.67,116.12,116.09,30.149]
[1743676771168,135.67,116.11,116.09,30.149]
[1743676771389,32.2861,116.16,116.09,30.149]
[1743676771390,135.67,116.13,116.09,30.149]
[1743676771572,135.67,116.14,116.09,30.149]
[1743676771771,137.81327057,116.13,116.09,30.149]
[1743676772575,2.14327057,116.13,116.09,21.535]
[1743676772775,2.14327057,116.15,116.09,21.535]
[1743676772989,2.14327057,116.15,116.1,18.64964886]
[1743676773294,2.14327057,116.16,116.09,21.535]
[1743676774699,8.6095,116.15,116.09,21.535]
[1743676775004,2.14327057,116.14,116.09,21.535]
[1743676775174,2.14327057,116.15,116.09,21.535]
[1743676776074,10.75297057,116.15,116.09,21.535]
[1743676777578,2.14327057,116.15,116.09,21.535]
[1743676778098,10.75297057,116.15,116.09,21.535]
[1743676779401,2.14327057,116.15,116.09,21.535]
[1743676779898,2.14327057,116.16,116.09,21.535]
[1743676780783,27.92327057,116.16,116.09,21.535]
[1743676781287,27.92327057,116.16,116.09,21.565]
[1743676781486,36.53257057,116.16,116.09,21.565]
[1743676781692,0.063,116.15,116.09,21.565]
[1743676782970,0.063,116.15,116.09,0.03]
[1743676783175,27.92327057,116.14,116.09,0.03]
[1743676783596,25.78,116.12,116.09,0.03]
[1743676783792,2.14327057,116.11,116.09,0.03]
[1743676785588,36.53627057,116.11,116.09,0.03]
[1743676785993,43.04087057,116.11,116.09,0.03]
[1743676786505,51.78,116.07,116.06,4.89722662]
[1743676786719,0.5,115.98,115.91,8.82613024]
[1743676786901,0.5,115.96,115.91,8.82613024]
[1743676787211,0.5,115.97,115.91,7.82613024]
[1743676787382,0.5,115.98,115.91,7.82613024]
[1743676787692,0.5,115.94,115.91,16.45343024]
[1743676788071,2.14327057,115.99,115.91,38.02183024]
[1743676788273,0.5,116.0,115.94,18.64964886]
[1743676788598,0.5,116.02,115.95,0.42648471]
[1743676788782,2.14327057,116.01,115.94,0.14216157]
[1743676788983,2.14327057,116.03,115.96,18.933972]
[1743676789174,25.78,116.01,115.91,7.82613024]
[1743676789500,0.5,115.99,115.91,7.82613024]
[1743676789696,2.14327057,115.98,115.9,79.6423]
[1743676789896,2.64327057,116.0,115.9,79.6423]
[1743676790095,2.14327057,116.0,115.9,79.6423]
[1743676790289,0.5,115.99,115.9,79.6423]
[1743676790489,2.14327057,115.98,115.9,79.6423]
[1743676790691,0.5,115.97,115.9,79.6423]
[1743676790897,0.5,115.98,115.9,79.6423]
[1743676791197,2.14327057,116.0,115.9,79.6423]
[1743676791388,2.64327057,116.01,115.9,79.6423]
[1743676791575,2.64327057,116.02,115.9,79.6423]
[1743676791780,0.5,115.98,115.9,79.6423]
[1743676792593,0.5,115.97,115.9,79.6423]
[1743676792900,0.5,115.98,115.9,122.7829]
[1743676794597,0.5,116.03,115.93,26.0]
[1743676794791,2.64327057,116.04,115.93,26.0]
[1743676795097,0.5,116.02,115.94,73.3136]
[1743676795297,0.5,116.01,115.94,73.3136]
[1743676795905,0.5,115.98,115.94,30.1879]
[1743676796579,0.5,116.0,115.94,30.1879]
[1743676796783,0.5,115.97,115.94,30.1879]
[1743676797003,0.5,115.97,115.91,30.1957]
[1743676797202,0.5,115.97,115.91,73.3326]
[1743676797382,2.14327057,116.0,115.91,73.3326]
[1743676797383,2.64327057,116.0,115.91,73.3326]
[1743676797587,0.5,115.98,115.91,73.3326]
[1743676797892,0.5,116.01,115.91,73.3326]
[1743676798102,0.5,115.98,115.91,73.3326]
[1743676799212,0.5,115.98,115.93,0.14216157]
[1743676799613,0.5,115.97,115.93,0.14216157]
[1743676800703,2.14327057,116.01,115.93,0.14216157]
[1743676800905,2.14327057,116.05,115.93,0.14216157]
[1743676801298,2.14327057,116.05,115.95,19.07613357]
[1743676801299,10.76047057,116.05,115.95,19.07613357]
[1743676802715,2.14327057,116.05,115.95,21.90043357]
[1743676803199,2.14327057,116.05,115.98,0.42648471]
[1743676803401,6.0718,116.06,115.98,0.42648471]
[1743676803402,2.14327057,116.06,115.98,0.42648471]
[1743676803603,6.0597,116.1,115.98,0.42648471]
[1743676803604,2.14327057,116.09,115.98,0.42648471]
[1743676803804,2.14327057,116.09,115.97,25.26594886]
[1743676803805,26.0,116.07,115.97,25.26594886]
[1743676804002,26.0,116.07,115.96,30.1827]
[1743676804003,28.14327057,116.06,115.96,30.1827]
[1743676804204,6.2859,116.05,115.96,30.1827]
[1743676804389,2.14327057,116.04,115.96,30.1827]
[1743676804594,27.92327057,116.04,115.96,30.1827]
[1743676804996,2.14327057,116.04,115.96,30.1827]
[1743676805204,8.6184,116.03,115.96,21.5591]
[1743676805393,8.6184,116.03,115.95,8.6244]
[1743676805394,26.0,116.0,115.95,8.6244]
[1743676805597,2.14327057,115.99,115.95,8.6244]
[1743676806506,34.54187057,115.99,115.92,8.6266]
[1743676807213,51.78,115.96,115.87,2.9806]
[1743676807400,10.76767057,115.95,115.88,8.6296]
[1743676807598,36.54767057,115.95,115.93,0.03]
[1743676807812,10.76767057,115.95,115.93,0.03]
[1743676808701,25.78,115.94,115.93,0.03]
[1743676809303,25.78,115.94,115.82,6.0985]
[1743676809304,25.78,115.91,115.83,8.6333]
[1743676809496,29.81637057,115.91,115.83,8.6333]
[1743676810100,26.0,115.89,115.83,8.6333]
[1743676810302,28.14327057,115.88,115.78,8.637]
[1743676810701,32.34266157,115.87,115.78,8.637]
[1743676810901,2.14327057,115.86,115.78,8.637]
[1743676811301,2.14327057,115.86,115.75,51.864]
[1743676811608,2.14327057,115.86,115.75,116.30086157]
[1743676811809,2.14327057,115.87,115.8,18.933972]
[1743676812013,0.5,115.94,115.8,18.933972]
[1743676812014,2.14327057,115.9,115.8,18.933972]
[1743676812204,8.6252,115.94,115.81,3.0371]
[1743676812205,0.14216157,115.92,115.81,3.0371]
[1743676812516,28.14327057,115.91,115.81,3.0371]
[1743676812906,28.14327057,115.91,115.79,18.64964886]
[1743676813097,28.14327057,115.91,115.8,0.28432314]
[1743676813298,2.14327057,115.91,115.82,18.64964886]
[1743676813494,2.14327057,115.92,115.82,18.64964886]
[1743676813693,2.14327057,115.92,115.81,73.3959]
[1743676813900,26.0,115.9,115.81,73.3959]
[1743676814096,28.14327057,115.89,115.81,30.2218]
[1743676814300,25.94309144,115.85,115.81,8.6348]
[1743676814603,2.14327057,115.84,115.75,30.237]
[1743676814803,2.28543214,115.86,115.75,30.237]
[1743676815424,8.6318,115.85,115.75,30.237]
[1743676815640,2.14327057,115.84,115.75,30.237]
[1743676816115,2.14327057,115.84,115.76,18.64964886]
[1743676816322,2.14327057,115.84,115.75,30.237]
[1743676816511,26.0,115.83,115.76,18.64964886]
[1743676816710,2.14327057,115.82,115.75,30.237]
[1743676816910,2.14327057,115.82,115.76,18.64964886]
[1743676817227,2.14327057,115.86,115.77,0.28432314]
[1743676817406,2.14327057,115.86,115.79,18.64964886]
[1743676817798,2.14327057,115.86,115.8,0.28432314]
[1743676818004,6.4206,115.91,115.8,0.42648471]
[1743676818199,2.14327057,115.9,115.8,0.14216157]
[1743676818406,18.79181043,115.89,115.78,73.4149]
[1743676818609,28.14327057,115.88,115.78,30.2296]
[1743676819421,8.6303,115.87,115.78,21.5926]
[1743676819627,2.14327057,115.86,115.77,8.6378]
[1743676819804,26.0,115.84,115.77,30.2323]
[1743676820007,2.14327057,115.83,115.77,30.2323]
[1743676820419,2.14327057,115.83,115.77,21.5945]
[1743676820821,2.14327057,115.83,115.78,18.64964886]
[1743676821128,26.0,115.86,115.77,21.5945]
[1743676821324,2.14327057,115.85,115.77,21.5945]
[1743676821530,2.14327057,115.85,115.77,30.2323]
[1743676821726,10.77507057,115.85,115.77,30.2323]
[1743676822138,2.14327057,115.85,115.78,18.64964886]
[1743676822826,7.96271279,115.91,115.81,6.1432]
[1743676823019,2.14327057,115.9,115.83,0.42648471]
[1743676823223,2.14327057,115.91,115.83,0.28432314]
[1743676823410,2.14327057,115.91,115.84,30.2139]
[1743676823907,26.0,115.9,115.84,8.6325]
[1743676824222,2.14327057,115.89,115.84,8.6325]
[1743676824420,28.14327057,115.89,115.81,8.6348]
[1743676825141,6.5535,115.88,115.81,30.2218]
[1743676825339,2.14327057,115.87,115.81,30.2218]
[1743676825516,2.14327057,115.87,115.79,92.05834886]
[1743676826243,25.78,115.86,115.79,30.2271]
[1743676826413,2.14327057,115.85,115.79,8.6363]
[1743676826910,26.0,115.82,115.73,8.6408]
[1743676827116,51.78,115.78,115.71,8.6418]
[1743676827314,2.14327057,115.77,115.71,8.6418]
[1743676827512,2.14327057,115.77,115.7,21.6059]
[1743676827513,27.92327057,115.77,115.7,21.6059]
[1743676827729,2.14327057,115.77,115.72,18.011]
[1743676827932,2.14327057,115.78,115.72,18.011]
[1743676828137,2.14327057,115.77,115.72,18.011]
[1743676828344,26.0,115.78,115.72,18.011]
[1743676828525,27.92327057,115.77,115.72,18.011]
[1743676828837,27.92327057,115.77,115.72,9.37]
[1743676829043,27.92327057,115.77,115.72,1.00002972]
[1743676829245,2.14327057,115.77,115.72,9.64122972]
[1743676829532,8.6385,115.76,115.72,1.00002972]
[1743676829741,27.92327057,115.75,115.72,1.00002972]
[1743676830220,26.0,115.73,115.72,1.00002972]
[1743676831240,26.0,115.72,115.64,8.6475]
[1743676831438,8.643,115.7,115.64,8.6475]
[1743676831637,2.14327057,115.69,115.64,8.6475]
[1743676832040,2.14327057,115.72,115.65,18.64964886]
[1743676832257,2.14327057,115.72,115.64,30.2663]
[1743676832644,0.14216157,115.68,115.63,8.91741818]
[1743676832826,2.14327057,115.67,115.63,8.91741818]
[1743676833227,2.14327057,115.67,115.63,0.26931818]
[1743676833830,10.78847057,115.67,115.63,0.26931818]
[1743676834049,0.14216157,115.66,115.63,0.26931818]
[1743676834247,2.14327057,115.65,115.63,0.26931818]
[1743676835046,2.14327057,115.67,115.63,8.91721818]
[1743676836145,2.14327057,115.68,115.63,8.91721818]
[1743676836450,0.14216157,115.7,115.63,8.91721818]
[1743676836451,2.14327057,115.7,115.63,8.91721818]
[1743676836637,0.14216157,115.75,115.63,8.91721818]
[1743676836834,2.14327057,115.74,115.64,18.933972]
[1743676837050,2.14327057,115.76,115.65,0.14216157]
[1743676837630,2.14327057,115.76,115.66,73.4911]
[1743676837954,2.14327057,115.76,115.67,18.933972]
[1743676838133,10.78187057,115.76,115.66,73.4911]
[1743676838328,0.14216157,115.75,115.66,73.4911]
[1743676838534,2.14327057,115.74,115.66,73.4911]
[1743676838737,20.0,115.71,115.63,0.26931818]
[1743676838952,28.14327057,115.7,115.63,8.91751818]
[1743676839640,28.14327057,115.7,115.63,30.53811818]
[1743676840054,36.78657057,115.7,115.63,30.53811818]
[1743676840255,0.14216157,115.69,115.63,8.91751818]
[1743676840462,0.14216157,115.67,115.63,0.26931818]
[1743676840659,2.14327057,115.66,115.63,0.26931818]
[1743676841234,26.14216157,115.65,115.63,0.26931818]
[1743676841435,2.14327057,115.64,115.63,0.26931818]
[1743676841641,36.78727057,115.69,115.63,8.91751818]
[1743676841939,2.14327057,115.69,115.63,8.91751818]
[1743676842251,26.0,115.7,115.63,30.53811818]
[1743676842465,2.14327057,115.69,115.63,8.91751818]
[1743676842669,28.14327057,115.69,115.63,8.91751818]
[1743676843235,28.14327057,115.69,115.63,30.53811818]
[1743676843436,2.14327057,115.69,115.63,30.53811818]
[1743676843640,2.14327057,115.72,115.63,30.53811818]
[1743676843854,2.14327057,115.72,115.64,18.933972]
[1743676844060,2.14327057,115.74,115.64,18.933972]
[1743676844754,0.063,115.73,115.64,18.933972]
[1743676845538,0.063,115.73,115.66,18.933972]
[1743676846269,0.063,115.73,115.67,0.14216157]
[1743676846579,0.5,115.83,115.67,0.14216157]
[1743676846580,2.14327057,115.79,115.7,25.53293357]
[1743676846738,2.14327057,115.83,115.72,0.14216157]
[1743676846936,2.14327057,115.83,115.72,19.07613357]
[1743676847533,2.14327057,115.83,115.74,0.14216157]
[1743676847975,2.14327057,115.83,115.74,19.07613357]
[1743676848185,10.83827057,115.85,115.74,19.07613357]
[1743676848541,28.20627057,115.85,115.74,19.07613357]
[1743676848754,2.20627057,115.85,115.74,19.07613357]
[1743676848940,10.83817057,115.85,115.74,19.07613357]
[1743676849148,0.14216157,115.84,115.73,30.2428]
[1743676849349,26.0,115.82,115.73,30.2428]
[1743676849561,2.14327057,115.81,115.73,30.2428]
[1743676850157,2.14327057,115.82,115.74,18.79181043]
[1743676850775,26.0,115.82,115.74,18.79181043]
[1743676850980,2.14327057,115.81,115.73,30.38496157]
[1743676851292,2.14327057,115.81,115.75,8.6393]
[1743676851463,2.14327057,115.82,115.75,8.6393]
[1743676852365,2.14327057,115.82,115.74,8.64]
[1743676853474,26.0,115.78,115.71,2.8527]
[1743676853677,26.0,115.76,115.67,18.64964886]
[1743676853884,2.14327057,115.75,115.68,8.6443]
[1743676854190,2.14327057,115.75,115.68,30.2556]
[1743676854356,2.28543214,115.78,115.68,30.2556]
[1743676854561,26.0,115.76,115.68,8.6443]
[1743676854781,2.14327057,115.75,115.68,8.6443]
[1743676855600,10.78287057,115.75,115.67,30.2569]
[1743676855892,2.14327057,115.75,115.68,18.933972]
[1743676856068,10.78027057,115.78,115.68,18.933972]
[1743676856271,26.0,115.76,115.67,30.2569]
[1743676856484,2.14327057,115.75,115.67,30.2569]
[1743676856664,2.14327057,115.75,115.68,18.933972]
[1743676857077,2.14327057,115.78,115.68,18.933972]
[1743676857583,2.14327057,115.78,115.7,18.933972]
[1743676857759,2.14327057,115.79,115.7,18.933972]
[1743676858782,2.14327057,115.79,115.71,0.14216157]
[1743676858990,26.0,115.78,115.69,30.2531]
[1743676859294,2.14327057,115.77,115.69,30.2531]
[1743676859498,2.14327057,115.77,115.69,0.14216157]
[1743676859669,2.14327057,115.77,115.69,0.28432314]
[1743676859875,2.14327057,115.78,115.69,0.28432314]
[1743676860487,2.14327057,115.8,115.67,116.7103]
[1743676860709,2.14327057,115.8,115.68,18.64964886]
[1743676860985,2.14327057,115.8,115.69,0.42648471]
[1743676861565,2.14327057,115.8,115.71,18.933972]
[1743676861566,10.77927057,115.8,115.71,18.933972]
[1743676861772,2.14327057,115.8,115.71,18.933972]
[1743676861980,10.77887057,115.8,115.71,18.933972]
[1743676862287,10.77887057,115.8,115.72,0.14216157]
[1743676862664,10.77887057,115.8,115.7,73.4658]
[1743676862665,36.55887057,115.8,115.7,30.2506]
[1743676862879,36.55887057,115.8,115.7,8.643]
[1743676863076,32.36777057,115.8,115.7,30.2506]
[1743676863263,0.42648471,115.79,115.7,8.643]
[1743676863480,26.0,115.77,115.66,2.9459]
[1743676863667,10.78177057,115.76,115.68,21.6106]
[1743676864264,36.56177057,115.76,115.67,8.6452]
[1743676864462,32.37817057,115.76,115.67,8.6452]
[1743676865277,58.15817057,115.76,115.67,8.6452]
[1743676865894,32.37817057,115.76,115.67,8.6452]
[1743676866367,32.37817057,115.76,115.67,30.2584]
[1743676866570,10.78177057,115.76,115.67,30.2584]
[1743676866791,10.78177057,115.76,115.67,8.6452]
[1743676866966,10.78177057,115.76,115.66,2.9459]
[1743676866967,26.0,115.72,115.66,8.6757]
[1743676867173,2.14327057,115.71,115.66,0.03]
[1743676867472,8.42967057,115.75,115.67,18.933972]
[1743676867673,2.14327057,115.75,115.68,0.14216157]
[1743676867981,2.14327057,115.78,115.69,30.2531]
[1743676868887,26.0,115.76,115.67,0.03]
[1743676869183,2.14327057,115.75,115.67,0.03]
[1743676869387,2.14327057,115.75,115.67,18.963972]
[1743676869563,2.14327057,115.78,115.68,0.14216157]
[1743676869763,10.78107057,115.78,115.7,18.933972]
[1743676869967,10.78107057,115.78,115.69,30.2531]
[1743676870280,2.14327057,115.78,115.7,18.933972]
[1743676870673,2.14327057,115.78,115.71,9.2703]
[1743676870870,0.14216157,115.8,115.71,9.2703]
[1743676871077,2.14327057,115.79,115.71,2.8423]
[1743676872089,2.14327057,115.8,115.72,8.6415]
[1743676872399,2.14327057,115.8,115.72,30.2453]
[1743676874184,8.6363,115.79,115.72,8.6415]
[1743676874488,2.14327057,115.78,115.72,18.933972]
[1743676874667,2.14327057,115.79,115.72,18.933972]
[1743676874867,2.14327057,115.79,115.71,33.0899]
[1743676875281,2.14327057,115.79,115.72,18.933972]
[1743676876191,2.14327057,115.79,115.73,30.2428]
[1743676876393,2.14327057,115.8,115.73,30.2428]
[1743676877164,2.14327057,115.8,115.74,18.933972]
[1743676877566,8.6974,115.82,115.75,0.14216157]
[1743676877785,2.14327057,115.81,115.74,24.994372]
[1743676877986,2.14327057,115.81,115.75,0.14216157]
[1743676878271,2.20627057,115.82,115.76,8.6385]
[1743676878474,10.84047057,115.82,115.76,8.6385]
[1743676878796,32.42567057,115.82,115.75,8.6389]